fUST/lending_fUST_20250511
["ID","MTS","AMOUNT","RATE_DAILY","PERIOD"]
[360754970,1746978639499,-500.0,0.00012262,2]
[360754971,1746978639509,-295.587976,0.00012262,2]
[360754972,1746978639519,-295.587976,0.00012262,2]
[360754973,1746978639528,-151.0,0.00012262,2]
[360754974,1746978639538,-151.0,0.00012262,2]
[360754975,1746978639548,-2880.64093774,0.00012267,2]
[360754976,1746978639558,-500.0,0.00012267,2]
[360754977,1746978639568,-162.94943,0.00012268,2]
[360754978,1746978639578,-400.0,0.00012268,2]
[360754979,1746978639587,-400.0,0.00012268,2]
[360754980,1746978639598,-500.0,0.00012275,2]
[360754981,1746978639607,-400.0,0.00012276,2]
[360754982,1746978639617,-400.0,0.00012276,2]
[360754983,1746978639628,-400.0,0.00012276,2]
[360754984,1746978639637,-400.0,0.00012276,2]
[360754985,1746978639648,-400.0,0.00012276,2]
[360754986,1746978639658,-400.0,0.00012276,2]
[360754987,1746978639667,-400.0,0.00012276,2]
[360754988,1746978639678,-400.0,0.00012276,2]
[360754989,1746978639688,-295.587976,0.00012276,2]
[360754990,1746978639698,-400.0,0.00012276,2]
[360754991,1746978639708,-295.587976,0.00012276,2]
[360754992,1746978639718,-400.0,0.00012276,2]
[360754993,1746978639728,-151.0,0.00012276,2]
[360754994,1746978639738,-400.0,0.00012276,2]
[360754995,1746978639748,-400.0,0.00012276,2]
[360754996,1746978639758,-400.0,0.00012276,2]
[360754997,1746978639768,-400.0,0.00012276,2]
[360754998,1746978639778,-270.77,0.00012276,2]
[360754999,1746978639789,-196.13535,0.00012276,2]
[360755000,1746978639799,-196.13535,0.00012276,2]
[360755001,1746978639808,-401.69329806,0.00012276,2]
[360755002,1746978639818,-400.0,0.00012276,2]
[360755003,1746978639828,-403.867013,0.00012276,2]
[360755004,1746978639838,-217.14319237,0.00012276,2]
[360755005,1746978639848,-518.08059673,0.00012276,2]
[360755006,1746978639858,-151.0,0.00012276,2]
[360755007,1746978639869,-400.0,0.0001231,2]
[360755008,1746978639879,-187.89107023,0.0001231,2]
[360755009,1746978639889,-400.0,0.0001231,2]
[360755010,1746978639898,-400.0,0.0001231,2]
[360755011,1746978639908,-400.0,0.0001242,2]
[360755012,1746978639917,-400.0,0.0001242,2]
[360755013,1746978639928,-420.46,0.0001242,2]
[360755014,1746978639938,-400.0,0.00012426,2]
[360755015,1746978639947,-400.0,0.00012426,2]
[360755016,1746978639957,-400.0,0.00012426,2]
[360755017,1746978639967,-400.0,0.00012426,2]
[360755018,1746978639978,-400.0,0.00012426,2]
[360755019,1746978639987,-289.25347898,0.00012426,2]
[360755020,1746978639998,-400.0,0.00012426,2]
[360755021,1746978640007,-400.0,0.00012426,2]
[360755022,1746978640017,-400.0,0.00012426,2]
[360755023,1746978640027,-1615.66,0.00012426,2]
[360755024,1746978640037,-286.60870845,0.00012426,2]
[360755025,1746978640046,-400.0,0.00012426,2]
[360755026,1746978640056,-400.0,0.00012426,2]
[360755027,1746978640066,-400.0,0.00012426,2]
[360755028,1746978640077,-400.0,0.00012426,2]
[360755030,1746978640087,-400.0,0.00012426,2]
[360755031,1746978640098,-400.0,0.00012426,2]
[360755032,1746978640108,-202.97749869,0.00012426,2]
[360755033,1746978640118,-400.0,0.00012426,2]
[360755034,1746978640129,-400.0,0.00012426,2]
[360755035,1746978640139,-400.0,0.00012426,2]
[360755036,1746978640150,-400.0,0.00012426,2]
[360755037,1746978640160,-400.0,0.00012426,2]
[360755038,1746978640171,-4602.9,0.00012426,2]
[360755039,1746978640183,-400.0,0.00012426,2]
[360755040,1746978640193,-400.0,0.00012426,2]
[360755041,1746978640204,-421.5,0.00012426,2]
[360755042,1746978640215,-400.0,0.00012426,2]
[360755043,1746978640225,-400.0,0.00012426,2]
[360755044,1746978640236,-400.0,0.00012426,2]
[360755045,1746978640246,-400.0,0.00012426,2]
[360755046,1746978640256,-400.0,0.00012426,2]
[360755047,1746978640266,-402.13347061,0.00012426,2]
[360755048,1746978640276,-225.10463459,0.00012426,2]
[360755049,1746978640287,-400.0,0.00012426,2]
[360755050,1746978640299,-403.7251931,0.00012426,2]
[360755051,1746978640310,-400.0,0.00012426,2]
[360755052,1746978640319,-400.0,0.00012426,2]
[360755053,1746978640329,-400.0,0.00012426,2]
[360755054,1746978640339,-400.0,0.00012426,2]
[360755055,1746978640349,-400.0,0.00012426,2]
[360755056,1746978640358,-400.0,0.00012426,2]
[360755057,1746978640369,-400.0,0.00012426,2]
[360755058,1746978640378,-400.0,0.00012426,2]
[360755059,1746978640387,-400.0,0.00012426,2]
[360755060,1746978640397,-400.0,0.00012426,2]
[360755061,1746978640406,-400.0,0.00012426,2]
[360755062,1746978640416,-400.0,0.00012426,2]
[360755063,1746978640426,-400.0,0.00012426,2]
[360755064,1746978640436,-400.0,0.00012426,2]
[360755065,1746978640445,-406.68035428,0.00012426,2]
[360755066,1746978640455,-400.0,0.00012426,2]
[360755067,1746978640464,-400.0,0.00012426,2]
[360755068,1746978640474,-400.0,0.00012426,2]
[360755069,1746978640484,-400.0,0.00012426,2]
[360755070,1746978640494,-400.0,0.00012426,2]
[360755071,1746978640503,-400.0,0.00012426,2]
[360755072,1746978640514,-510.62878901,0.00012426,2]
[360755073,1746978640523,-400.0,0.00012426,2]
[360755074,1746978640533,-400.0,0.00012426,2]
[360755075,1746978640543,-400.0,0.00012426,2]
[360755076,1746978640553,-167.59209837,0.00012426,2]
[360755077,1746978640562,-400.0,0.00012426,2]
[360755078,1746978640572,-400.0,0.00012426,2]
[360755079,1746978640582,-400.0,0.00012426,2]
[360755080,1746978640591,-400.0,0.00012426,2]
[360755081,1746978640600,-400.0,0.00012426,2]
[360755082,1746978640609,-400.0,0.00012427,2]
[360755083,1746978640619,-400.0,0.00012427,2]
[360755084,1746978640629,-400.0,0.00012427,2]
[360755085,1746978640638,-400.0,0.00012427,2]
[360755086,1746978640648,-6494.35,0.00012427,2]
[360755088,1746978640658,-400.0,0.00012427,2]
[360755090,1746978640668,-400.0,0.00012427,2]
[360755092,1746978640678,-400.0,0.00012427,2]
[360755093,1746978640688,-223.84111814,0.00012427,2]
[360755094,1746978640697,-400.0,0.00012427,2]
[360755095,1746978640706,-400.0,0.00012435,2]
[360755096,1746978640716,-400.0,0.00012435,2]
[360755097,1746978640725,-400.0,0.00012435,2]
[360755098,1746978640735,-400.0,0.00012435,2]
[360755099,1746978640744,-400.0,0.00012435,2]
[360755101,1746978640753,-400.0,0.00012435,2]
[360755103,1746978640762,-400.0,0.00012435,2]
[360755104,1746978640772,-429.4093787,0.00012435,2]
[360755105,1746978640781,-401.95818055,0.00012435,2]
[360755106,1746978640791,-400.0,0.00012435,2]
[360755107,1746978640800,-400.0,0.00012435,2]
[360755108,1746978640810,-400.0,0.00012435,2]
[360755110,1746978640820,-400.0,0.00012435,2]
[360755112,1746978640829,-400.0,0.00012435,2]
[360755114,1746978640838,-400.0,0.00012435,2]
[360755115,1746978640847,-211.14600846,0.00012435,2]
[360755116,1746978640857,-400.0,0.00012435,2]
[360755117,1746978640867,-400.0,0.00012435,2]
[360755118,1746978640876,-501.88149073,0.00012435,2]
[360755119,1746978640885,-400.0,0.00012435,2]
[360755120,1746978640894,-400.0,0.00012435,2]
[360755121,1746978640904,-400.0,0.00012435,2]
[360755122,1746978640913,-400.0,0.00012435,2]
[360755123,1746978640922,-400.0,0.00012435,2]
[360755124,1746978640933,-400.0,0.00012435,2]
[360755125,1746978640942,-400.0,0.00012435,2]
[360755126,1746978640951,-400.0,0.00012435,2]
[360755127,1746978640960,-400.0,0.00012435,2]
[360755128,1746978640969,-400.0,0.00012435,2]
[360755129,1746978640978,-400.0,0.00012435,2]
[360755130,1746978640987,-400.0,0.00012435,2]
[360755131,1746978640996,-400.0,0.00012435,2]
[360755132,1746978641005,-400.0,0.00012435,2]
[360755133,1746978641015,-1203.07,0.00012435,2]
[360755134,1746978641024,-400.0,0.00012435,2]
[360755135,1746978641034,-400.0,0.00012435,2]
[360755136,1746978641043,-400.0,0.00012435,2]
[360755137,1746978641053,-400.0,0.00012435,2]
[360755138,1746978641062,-400.0,0.00012435,2]
[360755139,1746978641072,-400.0,0.00012435,2]
[360755140,1746978641082,-400.0,0.00012435,2]
[360755141,1746978641091,-400.0,0.00012435,2]
[360755142,1746978641100,-174.46,0.00012435,2]
[360755143,1746978641109,-1213.06,0.00012435,2]
[360755144,1746978641118,-400.0,0.00012435,2]
[360755145,1746978641127,-491.7182785,0.00012435,2]
[360755146,1746978641137,-400.0,0.00012435,2]
[360755147,1746978641147,-400.0,0.00012435,2]
[360755148,1746978641157,-400.0,0.00012435,2]
[360755149,1746978641166,-400.0,0.00012435,2]
[360755150,1746978641176,-400.0,0.00012435,2]
[360755151,1746978641189,-9600.09,0.00012435,2]
[360755152,1746978641198,-400.0,0.00012435,2]
[360755153,1746978641207,-400.0,0.00012435,2]
[360755154,1746978641217,-400.0,0.00012435,2]
[360755155,1746978641226,-400.0,0.00012435,2]
[360755156,1746978641236,-400.0,0.00012435,2]
[360755157,1746978641245,-400.0,0.00012435,2]
[360755158,1746978641254,-514.6,0.00012435,2]
[360755159,1746978641265,-400.0,0.00012435,2]
[360755160,1746978641275,-400.0,0.00012435,2]
[360755161,1746978641285,-305.43,0.00012435,2]
[360755162,1746978641299,-400.0,0.00012438,2]
[360755163,1746978641309,-400.0,0.00012438,2]
[360755164,1746978641319,-400.0,0.00012438,2]
[360755165,1746978641329,-151.0,0.0001244,2]
[360755166,1746978641339,-196.13535,0.0001244,2]
[360755167,1746978641349,-196.13535,0.0001244,2]
[360755168,1746978641358,-400.0,0.0001244,2]
[360755169,1746978641368,-400.0,0.0001244,2]
[360755170,1746978641378,-400.0,0.0001244,2]
[360755171,1746978641388,-605.81,0.0001244,2]
[360755172,1746978641398,-3072.78,0.0001244,2]
[360755173,1746978641407,-4366.61493188,0.00012467,2]
[360755174,1746978641417,-2880.64093774,0.00012472,2]
[360755175,1746978641426,-295.587976,0.00012532,2]
[360755176,1746978641435,-295.587976,0.00012532,2]
[360755177,1746978641444,-400.0,0.00012532,2]
[360755178,1746978641454,-400.0,0.00012532,2]
[360755179,1746978641464,-400.0,0.00012532,2]
[360755180,1746978641473,-400.0,0.00012532,2]
[360755181,1746978641483,-400.0,0.00012532,2]
[360755182,1746978641492,-402.71169398,0.00012532,2]
[360755183,1746978641502,-400.0,0.00012532,2]
[360755184,1746978641511,-400.0,0.00012532,2]
[360755185,1746978641520,-345.93297759,0.00012532,2]
[360755186,1746978641530,-400.0,0.00012532,2]
[360755187,1746978641540,-404.49874415,0.00012532,2]
[360755188,1746978641550,-403.81756615,0.00012532,2]
[360755189,1746978641560,-546.77758596,0.00012532,2]
[360755190,1746978641570,-400.0,0.00012532,2]
[360755191,1746978641581,-400.0,0.00012532,2]
[360755192,1746978641590,-400.0,0.00012532,2]
[360755193,1746978641601,-400.0,0.00012532,2]
[360755194,1746978641610,-367.81190793,0.00012532,2]
[360755195,1746978641620,-400.0,0.00012532,2]
[360755196,1746978641629,-400.0,0.00012532,2]
[360755197,1746978641639,-400.0,0.00012532,2]
[360755198,1746978641648,-400.0,0.00012532,2]
[360755199,1746978641657,-400.0,0.00012532,2]
[360755200,1746978641667,-400.0,0.00012532,2]
[360755201,1746978641677,-400.0,0.00012532,2]
[360755202,1746978641687,-400.0,0.00012532,2]
[360755203,1746978641696,-151.0,0.00012532,2]
[360755204,1746978641706,-172.9230151,0.00012533,2]
[360755205,1746978641716,-400.0,0.00012533,2]
[360755206,1746978641725,-400.0,0.00012533,2]
[360755207,1746978641735,-400.0,0.00012533,2]
[360755208,1746978641745,-400.0,0.00012533,2]
[360755209,1746978641755,-400.0,0.00012533,2]
[360755210,1746978641765,-400.0,0.00012533,2]
[360755211,1746978641774,-400.0,0.00012533,2]
[360755212,1746978641783,-400.0,0.00012533,2]
[360755213,1746978641792,-415.31673981,0.00012533,2]
[360755214,1746978641802,-400.0,0.00012533,2]
[360755215,1746978641812,-500.0,0.00012533,2]
[360755216,1746978641821,-400.0,0.00012533,2]
[360755217,1746978641830,-400.0,0.00012533,2]
[360755218,1746978641839,-467.42,0.00012533,2]
[360755219,1746978641848,-400.0,0.00012533,2]
[360755220,1746978641857,-400.0,0.00012533,2]
[360755221,1746978641867,-151.0,0.00012533,2]
[360755222,1746978641876,-1216.23,0.00012533,2]
[360755223,1746978641885,-400.0,0.00012533,2]
[360755224,1746978641894,-400.0,0.00012533,2]
[360755225,1746978641903,-400.0,0.00012533,2]
[360755226,1746978641912,-400.0,0.00012533,2]
[360755227,1746978641921,-196.13535,0.00012533,2]
[360755228,1746978641932,-400.0,0.00012533,2]
[360755229,1746978641941,-196.13535,0.00012533,2]
[360755230,1746978641950,-400.0,0.00012533,2]
[360755231,1746978641959,-257.70409008,0.00012533,2]
[360755232,1746978641969,-400.0,0.00012533,2]
[360755233,1746978641978,-400.0,0.00012533,2]
[360755234,1746978641987,-400.0,0.00012533,2]
[360755235,1746978641996,-400.0,0.00012533,2]
[360755236,1746978642005,-400.0,0.00012533,2]
[360755237,1746978642014,-400.0,0.00012533,2]
[360755238,1746978642023,-400.0,0.00012533,2]
[360755239,1746978642032,-400.0,0.00012533,2]
[360755240,1746978642041,-400.0,0.00012533,2]
[360755241,1746978642051,-400.0,0.00012533,2]
[360755242,1746978642060,-400.0,0.00012533,2]
[360755243,1746978642069,-5837.09,0.00012533,2]
[360755244,1746978642078,-400.0,0.00012533,2]
[360755245,1746978642086,-300.98490286,0.00012533,2]
[360755246,1746978642096,-400.0,0.00012533,2]
[360755247,1746978642105,-400.0,0.00012533,2]
[360755248,1746978642115,-400.0,0.00012533,2]
[360755249,1746978642124,-400.0,0.00012533,2]
[360755250,1746978642134,-400.0,0.00012533,2]
[360755251,1746978642144,-400.0,0.00012533,2]
[360755252,1746978642153,-400.0,0.00012533,2]
[360755253,1746978642163,-500.0,0.00012535,2]
[360755254,1746978642173,-151.0,0.00012536,2]
[360755255,1746978642183,-500.0,0.00012542,2]
[360755256,1746978642193,-295.587976,0.00012542,2]
[360755257,1746978642202,-295.587976,0.00012542,2]
[360755258,1746978642212,-400.0,0.00012542,2]
[360755259,1746978642221,-400.0,0.00012542,2]
[360755260,1746978642230,-151.0,0.00012542,2]
[360755261,1746978642240,-151.0,0.00012543,2]
[360755262,1746978642249,-151.449414,0.0001255,2]
[360755263,1746978642258,-151.0,0.0001255,2]
[360755264,1746978642267,-376.819461,0.0001255,2]
[360755265,1746978642276,-376.819461,0.0001255,2]
[360755266,1746978642286,-229.891876,0.0001255,2]
[360755267,1746978642298,-400.0,0.0001255,2]
[360755268,1746978642307,-536.94338367,0.0001255,2]
[360755269,1746978642317,-400.0,0.0001255,2]
[360755270,1746978642327,-400.0,0.0001255,2]
[360755271,1746978642336,-400.0,0.0001255,2]
[360755272,1746978642347,-407.73027785,0.0001255,2]
[360755273,1746978642356,-400.0,0.0001255,2]
[360755274,1746978642365,-400.0,0.0001255,2]
[360755275,1746978642376,-151.0,0.0001255,2]
[360755276,1746978642385,-151.0,0.0001255,2]
[360755277,1746978642394,-400.0,0.0001255,2]
[360755278,1746978642403,-400.0,0.0001255,2]
[360755279,1746978642412,-400.0,0.0001255,2]
[360755280,1746978642422,-400.0,0.0001255,2]
[360755281,1746978642432,-196.13535,0.0001255,2]
[360755282,1746978642442,-196.13535,0.0001255,2]
[360755283,1746978642451,-400.0,0.0001255,2]
[360755284,1746978642461,-403.47466696,0.00012584,2]
[360755285,1746978642470,-400.0,0.00012584,2]
[360755286,1746978642479,-400.0,0.00012584,2]
[360755287,1746978642489,-151.0,0.00012585,2]
[360755288,1746978642500,-151.0,0.00012585,2]
[360755289,1746978642510,-151.0,0.00012585,2]
[360755290,1746978642520,-151.0,0.00012661,2]
[360755291,1746978642530,-165.728719,0.00012661,2]
[360755292,1746978642541,-165.728719,0.00012661,2]
[360755293,1746978642551,-2880.64093774,0.00012678,2]
[360755294,1746978642561,-400.0,0.00012694,2]
[360755295,1746978642572,-400.0,0.00012694,2]
[360755296,1746978642582,-420.46,0.00012694,2]
[360755297,1746978642593,-408.23763842,0.000127,2]
[360755298,1746978642604,-444.38986862,0.000127,2]
[360755299,1746978642614,-409.1137732,0.000127,2]
[360755300,1746978642624,-400.0,0.000127,2]
[360755301,1746978642634,-400.0,0.000127,2]
[360755302,1746978642645,-1615.66,0.000127,2]
[360755303,1746978642655,-400.0,0.000127,2]
[360755304,1746978642666,-400.0,0.000127,2]
[360755305,1746978642678,-400.0,0.000127,2]
[360755306,1746978642689,-400.0,0.000127,2]
[360755307,1746978642699,-400.0,0.000127,2]
[360755308,1746978642834,-400.0,0.000127,2]
[360755309,1746978642843,-400.0,0.000127,2]
[360755310,1746978642853,-400.0,0.000127,2]
[360755311,1746978642863,-4602.9,0.000127,2]
[360755312,1746978642872,-400.0,0.000127,2]
[360755313,1746978642882,-400.0,0.000127,2]
[360755314,1746978642891,-421.5,0.000127,2]
[360755315,1746978642900,-400.0,0.000127,2]
[360755316,1746978642909,-400.0,0.000127,2]
[360755317,1746978642919,-400.0,0.000127,2]
[360755318,1746978642931,-400.0,0.000127,2]
[360755320,1746978642940,-400.0,0.000127,2]
[360755322,1746978642950,-400.0,0.000127,2]
[360755323,1746978642959,-400.0,0.000127,2]
[360755324,1746978642968,-464.4764499,0.000127,2]
[360755325,1746978642977,-400.0,0.000127,2]
[360755326,1746978642987,-400.0,0.000127,2]
[360755327,1746978642996,-400.0,0.000127,2]
[360755328,1746978643006,-400.0,0.000127,2]
[360755329,1746978643015,-400.0,0.000127,2]
[360755331,1746978643024,-400.0,0.000127,2]
[360755333,1746978643034,-400.0,0.000127,2]
[360755335,1746978643043,-225.04182471,0.000127,2]
[360755336,1746978643052,-400.0,0.000127,2]
[360755338,1746978643062,-400.0,0.000127,2]
[360755340,1746978643071,-400.0,0.000127,2]
[360755341,1746978643081,-226.28493648,0.000127,2]
[360755342,1746978643090,-400.0,0.00012701,2]
[360755343,1746978643100,-400.0,0.00012701,2]
[360755344,1746978643109,-209.07,0.00012701,2]
[360755345,1746978643118,-6494.35,0.00012701,2]
[360755346,1746978643128,-400.0,0.00012701,2]
[360755347,1746978643137,-522.78,0.00012701,2]
[360755348,1746978643147,-400.0,0.00012701,2]
[360755349,1746978643157,-400.0,0.00012701,2]
[360755350,1746978643166,-400.0,0.00012709,2]
[360755351,1746978643177,-400.0,0.00012709,2]
[360755353,1746978643186,-231.64187264,0.00012709,2]
[360755354,1746978643196,-338.78,0.00012709,2]
[360755355,1746978643206,-400.0,0.00012709,2]
[360755356,1746978643215,-400.0,0.00012709,2]
[360755357,1746978643224,-400.0,0.00012709,2]
[360755358,1746978643233,-400.0,0.00012709,2]
[360755359,1746978643242,-400.0,0.00012709,2]
[360755360,1746978643252,-401.13781941,0.00012709,2]
[360755361,1746978643262,-400.0,0.00012709,2]
[360755363,1746978643272,-400.0,0.00012709,2]
[360755364,1746978643282,-400.0,0.00012709,2]
[360755365,1746978643292,-400.0,0.00012709,2]
[360755366,1746978643305,-168.71,0.00012709,2]
[360755367,1746978643314,-422.53,0.00012709,2]
[360755368,1746978643324,-400.0,0.00012709,2]
[360755369,1746978643334,-400.0,0.00012709,2]
[360755370,1746978643346,-400.0,0.00012709,2]
[360755371,1746978643356,-400.0,0.00012709,2]
[360755372,1746978643366,-400.0,0.00012709,2]
[360755373,1746978643378,-400.0,0.00012709,2]
[360755374,1746978643388,-1203.07,0.00012709,2]
[360755375,1746978643397,-470.08075673,0.00012709,2]
[360755376,1746978643407,-400.0,0.00012709,2]
[360755377,1746978643416,-400.0,0.00012709,2]
[360755378,1746978643428,-400.0,0.00012709,2]
[360755379,1746978643437,-400.0,0.00012709,2]
[360755380,1746978643447,-400.0,0.00012709,2]
[360755381,1746978643456,-400.0,0.00012709,2]
[360755382,1746978643466,-1213.06,0.00012709,2]
[360755383,1746978643476,-400.0,0.00012709,2]
[360755384,1746978643485,-400.0,0.00012709,2]
[360755385,1746978643495,-400.0,0.00012709,2]
[360755386,1746978643504,-400.0,0.00012709,2]
[360755387,1746978643514,-400.0,0.00012709,2]
[360755388,1746978643523,-9600.09,0.00012709,2]
[360755389,1746978643533,-400.0,0.00012709,2]
[360755390,1746978643542,-400.0,0.00012709,2]
[360755391,1746978643551,-188.50303411,0.00012709,2]
[360755392,1746978643560,-400.0,0.00012709,2]
[360755393,1746978643570,-400.0,0.00012709,2]
[360755394,1746978643579,-295.587976,0.00012712,2]
[360755395,1746978643589,-295.587976,0.00012712,2]
[360755396,1746978643598,-400.0,0.00012712,2]
[360755397,1746978643608,-400.0,0.00012712,2]
[360755399,1746978643618,-400.0,0.00012712,2]
[360755401,1746978643627,-151.0,0.00012712,2]
[360755403,1746978643637,-400.0,0.00012714,2]
[360755405,1746978643646,-400.0,0.00012714,2]
[360755407,1746978643655,-400.0,0.00012714,2]
[360755409,1746978643665,-605.81,0.00012714,2]
[360755411,1746978643674,-3072.78,0.00012714,2]
[360755413,1746978643685,-500.0,0.00012805,2]
[360755415,1746978643694,-295.587976,0.00012806,2]
[360755417,1746978643704,-295.587976,0.00012806,2]
[360755419,1746978643713,-400.0,0.00012806,2]
[360755421,1746978643723,-151.0,0.00012806,2]
[360755423,1746978643732,-400.0,0.00012806,2]
[360755424,1746978643741,-400.0,0.00012806,2]
[360755426,1746978643750,-400.0,0.00012806,2]
[360755428,1746978643760,-196.13535,0.00012806,2]
[360755430,1746978643769,-196.13535,0.00012806,2]
[360755432,1746978643779,-400.0,0.00012806,2]
[360755433,1746978643788,-400.0,0.00012806,2]
[360755434,1746978643797,-400.0,0.00012806,2]
[360755435,1746978643807,-400.0,0.00012806,2]
[360755436,1746978643816,-403.52021058,0.00012806,2]
[360755437,1746978643826,-400.0,0.00012806,2]
[360755439,1746978643836,-400.0,0.00012806,2]
[360755441,1746978643845,-400.0,0.00012806,2]
[360755443,1746978643854,-400.0,0.00012806,2]
[360755444,1746978643864,-151.0,0.00012806,2]
[360755445,1746978643873,-400.0,0.00012807,2]
[360755446,1746978643883,-400.0,0.00012807,2]
[360755447,1746978643892,-400.0,0.00012807,2]
[360755449,1746978643901,-400.0,0.00012807,2]
[360755450,1746978643911,-400.0,0.00012807,2]
[360755451,1746978643920,-400.0,0.00012807,2]
[360755452,1746978643933,-400.0,0.00012807,2]
[360755454,1746978643942,-508.346453,0.00012807,2]
[360755456,1746978643951,-400.0,0.00012807,2]
[360755458,1746978643961,-400.0,0.00012807,2]
[360755460,1746978643970,-467.42,0.00012807,2]
[360755461,1746978643979,-400.0,0.00012807,2]
[360755462,1746978643988,-400.0,0.00012807,2]
[360755463,1746978643998,-1216.23,0.00012807,2]
[360755464,1746978644007,-400.0,0.00012807,2]
[360755465,1746978644016,-415.61013223,0.00012807,2]
[360755466,1746978644026,-400.0,0.00012807,2]
[360755467,1746978644035,-400.0,0.00012807,2]
[360755468,1746978644044,-400.0,0.00012807,2]
[360755469,1746978644053,-400.0,0.00012807,2]
[360755470,1746978644062,-538.65318899,0.00012807,2]
[360755471,1746978644072,-400.0,0.00012807,2]
[360755472,1746978644081,-400.0,0.00012807,2]
[360755473,1746978644090,-400.0,0.00012807,2]
[360755474,1746978644099,-400.0,0.00012807,2]
[360755475,1746978644108,-400.0,0.00012807,2]
[360755476,1746978644117,-400.0,0.00012807,2]
[360755477,1746978644126,-5837.09,0.00012807,2]
[360755478,1746978644136,-400.0,0.00012807,2]
[360755479,1746978644145,-400.0,0.00012807,2]
[360755480,1746978644154,-400.0,0.00012807,2]
[360755481,1746978644163,-400.0,0.00012807,2]
[360755482,1746978644173,-400.0,0.00012807,2]
[360755483,1746978644185,-206.91,0.00012807,2]
[360755484,1746978644194,-400.0,0.00012807,2]
[360755485,1746978644204,-400.0,0.00012807,2]
[360755486,1746978644213,-151.0,0.0001281,2]
[360755487,1746978644222,-151.0,0.0001281,2]
[360755488,1746978644231,-151.0,0.0001281,2]
[360755489,1746978644240,-196.13535,0.0001281,2]
[360755490,1746978644250,-196.13535,0.0001281,2]
[360755491,1746978644259,-500.0,0.00012815,2]
[360755492,1746978644268,-400.0,0.00012816,2]
[360755493,1746978644278,-400.0,0.00012816,2]
[360755494,1746978644288,-151.0,0.00012817,2]
[360755495,1746978644300,-376.819461,0.00012817,2]
[360755496,1746978644309,-376.819461,0.00012817,2]
[360755497,1746978644318,-151.0,0.00012817,2]
[360755498,1746978644327,-500.0,0.00012823,2]
[360755499,1746978644337,-1328.3406835,0.00012824,3]
[360755500,1746978644347,-384.732246,0.00012824,2]
[360755501,1746978644356,-384.732246,0.00012824,2]
[360755502,1746978644366,-376.819461,0.00012824,2]
[360755503,1746978644375,-376.819461,0.00012824,2]
[360755504,1746978644386,-151.0,0.00012824,2]
[360755505,1746978644395,-214.956083,0.00012824,2]
[360755506,1746978644404,-214.956083,0.00012824,2]
[360755507,1746978644413,-400.0,0.00012824,2]
[360755508,1746978644422,-295.587976,0.00012824,2]
[360755509,1746978644432,-400.0,0.00012824,2]
[360755510,1746978644441,-295.587976,0.00012824,2]
[360755511,1746978644450,-151.0,0.00012824,2]
[360755512,1746978644459,-400.0,0.00012824,2]